Workbook

Sheet Conv. Construction BoQ
A2: SCHEDULES | B2: ITEM NO | C2: DESCRIPTION | D2: UNIT | E2: QUANTITY | F2: RATE | G2: AMOUNT
A4: SCHEDULE A | B4: C1.2 | C4: GENERAL REQUIREMENTS AND PROVISIONS
B5: C1.2.1 | C5: Environmental Management
B6: C1.2.1.1 | C6: Monitoring of compliance with and reporting on the EMP | D6: month | E6: 21 | G6: =E6*F6 -> 0
B7: C1.2.1.2 | C7: Dedicated environmental officer (if specified in the Contract Documentation) | D7: month | E7: 21 | G7: =E7*F7 -> 0
B8: C1.2.2 | C8: Programming and Reporting
B9: C1.2.2.3 | C9: Submission of a Scheme 2 Initial Programme | D9: lump sum | E9: 1 | G9: =E9*F9 -> 0
B10: C1.2.2.4 | C10: Submission of a Scheme 2 Full Programme | D10: lump sum | E10: 1 | G10: =E10*F10 -> 0
B11: C1.2.2.5 | C11: Reviewing and updating a Scheme 2 programme every month | D11: month | E11: 21 | G11: 0
B12: C1.2.2.6 | C12: Preparation and submission of all information and reports specified in the Contract Documentation | D12: month | E12: 21 | G12: 0
B13: C1.2.3 | C13: Routine road maintenance of existing public roads within the Site of the Works or other public roads outside the Site of the Works which are used as detours
B14: C 1.2.3.1 | C14: Grass cutting | D14: hectare (ha) | E14: 3 | G14: =E14*F14 -> 0
B15: C1.2.3.2 | C15: Drain cleaning | D15: kilometre (km) | E15: 2 | G15: 0
B16: C1.2.3.3 | C16: Cleaning out culverts | D16: cubic metre (m3) | E16: 100 | G16: 0
B17: C1.2.3.4 | C17: Collection of rubbish / litter | D17: kilometre (km) | E17: 2 | G17: 0
B18: C1.2.3.8 | C18: Replacement of damaged guardrails including posts | D18: metre (m) | E18: 100 | G18: 0
B19: C1.2.3.11 | C19: Other road maintenance work ordered by the Engineer | D19: provisional sum | E19: prov | F19: sum | G19: R7,500,000.00
B20: C1.2.3.12 | C20: Handling cost, profit and all other charges in respect of item C1.2.3.11 | D20: percentage (%) | E20: =G19 -> R7,500,000.00 | G20: =F20*E20 -> 0
B21: C1.2.3.13 | C21: Liaison with the routine road maintenance contractor | D21: month | E21: 21 | G21: =E21*F21 -> 0
B22: C1.2.4 | C22: Stakeholder liaison | D22: month | E22: 21 | G22: =E22*F22 -> 0
B23: C1.2.5 | C23: Safety
B24: C1.2.5.1 | C24: Health and safety plan | D24: lump sum | E24: 1 | G24: =E24*F24 -> 0
B25: C1.2.5.2 | C25: Implementation of health and safety plan | D25: month | E25: 21 | G25: =E25*F25 -> 0
B26: C1.2.6 | C26: Work adjacent to properties
B27: C1.2.6.1 | C27: Survey of adjacent properties | D27: number (No.) | E27: 2 | G27: =E27*F27 -> 0
B28: C1.2.6.2 | C28: Preventive and/or mitigation measures | D28: provisional sum | E28: prov | F28: sum | G28: R300,000.00
B29: C1.2.6.3 | C29: Handling cost, profit and all other charges in respect of item C1.2.6.2 | D29: percentage (%) | E29: R300,000.00 | G29: =F29*E29 -> 0
B30: PC1.2.7 | C30: Road safety audits
B31: C1.2.7.1 | C31: Stage 4 work zone traffic management audit | D31: provisional sum | E31: Prov | F31: Sum | G31: R100,000.00
B32: C1.2.7.2 | C32: Handling cost, profit and all other charges in respect of item C1.2.7.1 | D32: percentage (%) | E32: R100,000.00 | G32: =F32*E32 -> 0
B33: C1.2.7.3 | C33: Stage 5 pre-opening stage traffic safety audit | D33: provisional sum | E33: Prov | F33: Sum | G33: R100,000.00
B34: C1.2.7.4 | C34: Handling cost, profit and all other charges in respect of item C1.2.7.3 | D34: percentage (%) | E34: R100,000.00 | G34: =F34*E34 -> 0
B35: C1.2.8 | C35: Dayworks
B36: C1.2.8.1 | C36: Personnel
B37: C1.2.8.1(a) | C37: Unskilled labourer | D37: hour (h) | E37: 200 | G37: =E37*F37 -> 0
B38: C1.2.8.1(b) | C38: Semi-skilled labourer | D38: hour (h) | E38: 100 | G38: 0
B39: C1.2.8.1(c) | C39: Skilled labourer | D39: hour (h) | E39: 100 | G39: 0
B40: C1.2.8.1(d) | C40: Gang leader | D40: hour (h) | E40: 100 | G40: 0
B41: C1.2.8.1(e) | C41: Foreman | D41: hour (h) | E41: 100 | G41: 0
B42: C1.2.8.1(f) | C42: Skilled artisan | D42: hour (h) | E42: 100 | G42: 0
B43: C1.2.8.2 | C43: Construction equipment (specify size and/or model number)
B44: C1.2.8.2(a) | C44: Motor grader | D44: hour (h) | E44: 50 | G44: =E44*F44 -> 0
B45: C1.2.8.2(b) | C45: Vibratory roller | D45: hour (h) | E45: 20 | G45: 0
B46: C1.2.8.2(c) | C46: Pneumatic roller | D46: hour (h) | G46: 0
B47: C1.2.8.2(d) | C47: Front end loader | D47: hour (h) | E47: 20 | G47: 0
B48: C1.2.8.2(e) | C48: Tractor loader backhoe | D48: hour (h) | E48: 50 | G48: 0
B49: C1.2.8.2(f) | C49: Excavator | D49: hour (h) | E49: 50 | G49: 0
B50: C1.2.8.3(c) | C50: Dump truck | D50: kilometre (km) | E50: 500 | G50: 0
B51: C1.2.8.4 | C51: Materials
B52: C1.2.8.4(a) | C52: Procurement of materials | D52: provisional sum | E52: prov | F52: sum | G52: R50,000.00
B53: C1.2.8.4(b) | C53: Contractor's handling costs, profit and all other charges in respect of item C1.2.8.4(a) | D53: percentage (%) | E53: R50,000.00 | G53: =F53*E53 -> 0
B54: C1.2.9 | C54: Disposal of non-useable assets
B55: C1.2.9.2 | C55: Disposal of non-useable assets not identified at time of tender | D55: provisional sum | E55: prov | F55: sum | G55: R150,000.00
B56: C1.2.9.3 | C56: Handling cost, profit and all other charges in respect of item C1.2.9.2 | D56: percentage (%) | E56: R150,000.00 | G56: =F56*E56 -> 0
B57: PC1.2.10 | C57: Dispute Adjudication Board (DAB)
B58: C1.2.10.1 | C58: Employer’s contribution to DAB (50%) | D58: prime cost (PC) sum | E58: Prime | F58: Cost | G58: R500,000.00
B59: C1.2 | C59: TOTAL CARRIED FORWARD TO SUMMARY | G59: =SUM(G6:G58) -> R8,700,000.00
A61: SCHEDULE A | B61: C1.3 | C61: CONTRACTOR’S SITE ESTABLISHMENT AND GENERAL OBLIGATIONS
B62: PC1.3.1 | C62: The Contractor's general obligations
B63: C1.3.1.1 | C63: Fixed obligations
B64: C1.3.1.1(a) | C64: Mobilisation period (maximum as specified) | D64: lump sum | E64: 1 | G64: =E64*F64 -> 0
B65: C1.3.1.1(b) | C65: Execution of the works | D65: lump sum | E65: 1 | G65: 0
B66: C1.3.1.2 | C66: Value-related obligations | D66: lump sum | E66: 1 | G66: 0
B67: C1.3.1.3 | C67: Time-related obligations
B68: C1.3.1.3(a) | C68: Mobilisation period | D68: month | E68: 3 | G68: =E68*F68 -> 0
B69: C1.3.1.3(b) | C69: Execution of the works | D69: month | E69: 21 | G69: 0
B70: C1.3.1.4 | C70: Suspension Cost
B71: C1.3.1.4(a) | C71: De-establishment | D71: number | E71: 1 | G71: =E71*F71 -> 0
B72: C1.3.1.4(b) | C72: Re-establishment | D72: number | E72: 1 | G72: 0
B73: C1.3.1.4(c) | C73: Suspension period | D73: month | E73: 3 | G73: 0
B74: C1.3.1.4(d) | C74: Engineer's cost | D74: prime cost (PC) sum | E74: prime | F74: cost | G74: R2,500,000.00
B75: C1.3.1.4(e) | C75: Handling cost, profit and all other charges in respect of item C1.3.1.4(d) | D75: percentage (%) | E75: =G74 -> R2,500,000.00 | G75: =E75*F75 -> 0
B76: C1.3.2 | C76: Contract sign boards | D76: square metre (m2) | E76: 25 | G76: =E76*F76 -> 0
B80: C1.3 | C80: TOTAL CARRIED FORWARD TO SUMMARY | G80: =SUM(G63:G79) -> R2,500,000.00
A82: SCHEDULE A | B82: C1.4 | C82: FACILITIES FOR THE ENGINEER
B83: C1.4.1 | C83: Site accommodation
B84: C1.4.1.1 | C84: Offices and conference room | D84: square metre (m2) | E84: 120 | G84: =E84*F84 -> 0
B85: C1.4.1.2 | C85: Laboratories | D85: square metre (m2) | E85: 200 | G85: 0
B86: C1.4.1.3 | C86: Open concrete working floors and verandas | D86: square metre (m2) | E86: 50 | G86: 0
B87: C1.4.1.4 | C87: Roofs over open concrete working floors and verandas | D87: square metre (m2) | E87: 50 | G87: 0
B88: C1.4.1.5 | C88: Store rooms inside the laboratory | D88: square metre (m2) | E88: 50 | G88: 0
B89: C1.4.1.6 | C89: Car ports | D89: number (No.) | E89: 12 | G89: 0
B90: C1.4.1.7 | C90: Ablution unit (equipped as specified) | D90: number (No.) | E90: 4 | G90: 0
B91: C1.4.1.8 | C91: Change room with a shower | D91: number (No.) | E91: 1 | G91: 0
B92: C1.4.1.9 | C92: Kitchen unit (equipped as specified) | D92: number (No.) | E92: 1 | G92: 0
B93: C1.4.2 | C93: Items measured by area
B94: C1.4.2.1 | C94: Shelving as specified, complete with brackets | D94: square metre (m2) | E94: 15 | G94: =E94*F94 -> 0
B95: C1.4.2.2 | C95: Work benches with a concrete slab top | D95: square metre (m2) | E95: 20 | G95: 0
B96: C1.4.2.3 | C96: Work-benches with a wooden top | D96: square metre (m2) | E96: 20 | G96: 0
B97: C1.4.2.4 | C97: Constant-temperature baths of concrete and/or plastered brick | D97: square metre (m2) | E97: 20 | G97: 0
B98: C1.4.2.5 | C98: Concrete footings and pedestals for laboratory equipment | D98: square metre (m2) | E98: 10 | G98: 0
B99: C1.4.2.6 | C99: Roller blinds, opaque type | D99: square metre (m2) | E99: 5 | G99: 0
B100: C1.4.2.7 | C100: Venetian blinds | D100: square metre (m2) | E100: 50 | G100: 0
B101: C1.4.2.8 | C101: Notice boards | D101: square metre (m2) | E101: 10 | G101: 0
B102: C1.4.2.9 | C102: White boards | D102: square metre (m2) | E102: 20 | G102: 0
B103: C1.4.2.10 | C103: Galvanised wire mesh fencing for store rooms | D103: square metre (m2) | E103: 30 | G103: 0
B104: C1.4.2.11 | C104: Galvanised wire mesh store room gate with a padlock | D104: square metre (m2) | E104: 5 | G104: 0
B105: C1.4.3 | C105: Items measured by number
B106: C1.4.3.1 | C106: Office swivel chair | D106: number (No.) | E106: 10 | G106: =E106*F106 -> 0
B107: C1.4.3.2 | C107: Office chair | D107: number (No.) | E107: 20 | G107: 0
B108: C1.4.3.3 | C108: Draughtsman's stool | D108: number (No.) | E108: 1 | G108: 0
B109: C1.4.3.4 | C109: Laboratory high chair | D109: number (No.) | E109: 10 | G109: 0
B110: C1.4.3.5 | C110: Office desk with 3 drawers (at least one lockable drawer) | D110: number (No.) | E110: 8 | G110: 0
B111: C1.4.3.7 | C111: Drawing table | D111: number (No.) | E111: 1 | G111: 0
B112: C1.4.3.8 | C112: Conference table | D112: number (No.) | E112: 1 | G112: 0
B113: C1.4.3.9 | C113: Bookcase | D113: number (No.) | E113: 6 | G113: 0
B114: C1.4.3.10 | C114: Filing cabinet | D114: number (No.) | E114: 6 | G114: 0
B115: C1.4.3.11 | C115: General purpose steel cabinet with shelves | D115: number (No.) | E115: 6 | G115: 0
B116: C1.4.3.12 | C116: Wall mounted pivot plan filing system | D116: number (No.) | E116: 1 | G116: 0
B117: C1.4.3.13 | C117: 220/250 volt power outlet plug point | D117: number (No.) | E117: 14 | G117: 0
B118: C1.4.3.14 | C118: 400/231 volt 3-phase power outlet plug point | D118: number (No.) | E118: 5 | G118: 0
B119: C1.4.3.15 | C119: Single 1500m, 58 watt fluorescent tube ceiling light | D119: number (No.) | E119: 6 | G119: 0
B120: C1.4.3.16 | C120: Single 1500mm, 22 watt LED tube ceiling light | D120: number (No.) | E120: 14 | G120: 0
B121: C1.4.3.17 | C121: 11 watt compact fluorescent bulb ceiling light | D121: number (No.) | E121: 5 | G121: 0
B122: C1.4.3.18 | C122: 7 watt LED bulb ceiling light | D122: number (No.) | E122: 6 | G122: 0
B123: C1.4.3.19 | C123: Wash-hand basin | D123: number (No.) | E123: 1 | G123: 0
B124: C1.4.3.20 | C124: Laboratory basin | D124: number (No.) | E124: 5 | G124: 0
B125: C1.4.3.21 | C125: Extractor fan | D125: number (No.) | E125: 5 | G125: 0
B126: C1.4.3.22 | C126: Fume cupboard | D126: number (No.) | E126: 1 | G126: 0
B127: C1.4.3.23 | C127: Fire extinguisher 9,0 kg, dry powder type | D127: number (No.) | E127: 10 | G127: 0
B128: C1.4.3.24 | C128: Air-conditioning unit | D128: number (No.) | E128: 8 | G128: 0
B129: C1.4.3.26 | C129: Concrete specimen curing bath | D129: number (No.) | E129: 6 | G129: 0
B130: C1.4.3.27 | C130: Waste paper basket | D130: number (No.) | E130: 6 | G130: 0
B131: C1.4.3.28 | C131: UPS / Voltage stabiliser | D131: number (No.) | E131: 10 | G131: 0
B132: C1.4.3.29 | C132: A3 / A4 colour printer, copier, scanner | D132: number (No.) | E132: 2 | G132: 0
B133: C1.4.3.31 | C133: Rain gauge | D133: number (No.) | E133: 1 | G133: 0
B134: C1.4.3.32 | C134: Minimum/maximum atmospheric temperature gauge | D134: number (No.) | E134: 1 | G134: 0
B135: C1.4.3.33 | C135: Digital thermometer | D135: number (No.) | E135: 2 | G135: 0
B136: C1.4.3.34 | C136: Mobile outdoor weather station | D136: number (No.) | E136: 1 | G136: 0
B137: C1.4.3.35 | C137: 3,0m aluminium straight edge complete with two measuring wedges | D137: number (No.) | E137: 1 | G137: 0
B138: C1.4.3.36 | C138: Measuring wheel | D138: number (No.) | E138: 2 | G138: 0
B139: C1.4.3.37 | C139: First aid kit | D139: number (No.) | E139: 4 | G139: 0
B140: C1.4.3.38 | C140: Standpipe complete with 30m of 19mm dia. heavy duty hose pipe | D140: number (No.) | E140: 1 | G140: 0
B141: PC1.4.3.39 | C141: Projector and screen (85 inch) | D141: number (No.) | E141: 1 | G141: 0
B142: C1.4.4 | C142: Prime cost items
B143: C1.4.4.1 | C143: Cell phones costs, including pro-rata rentals, for calls made in connection with contract administration | D143: prime cost (PC) sum | E143: prime | F143: cost | G143: R25,000.00
B144: C1.4.4.2 | C144: Handling costs and profit in respect of item C1.4.4.1 | D144: percentage (%) | E144: 25000 | G144: =E144*F144 -> 0
B145: C1.4.4.5 | C145: The provision of internet connectivity and WiFi data for Engineer’s site staff | D145: prime cost (PC) sum | E145: prime | F145: cost | G145: R35,000.00
B146: C1.4.4.6 | C146: Handling costs and profit in respect of item C1.4.4.5 | D146: percentage (%) | E146: 35000 | G146: =E146*F146 -> 0
B147: C1.4.4.7 | C147: The provision of paper and ink for a combination colour printer/copier/scanner | D147: prime cost (PC) sum | E147: prime | F147: cost | G147: R60,000.00
B148: C1.4.4.8 | C148: Handling costs and profit in respect of item C1.4.4.7 | D148: percentage (%) | E148: 60000 | G148: =E148*F148 -> 0
B149: C1.4.4.9 | C149: The provision of a complete 220/250 volt single phase electrical power installation, including all poles, insulators, wiring, switchboards, mains connections, meters etc. | D149: prime cost (PC) sum | E149: prime | F149: cost | G149: R75,000.00
B150: C1.4.4.10 | C150: Handling costs and profit in respect of item C1.4.4.9 | D150: percentage (%) | E150: 75000 | G150: =E150*F150 -> 0
B151: C1.4.4.11 | C151: The provision of a complete 440/231 volt three phase electrical power installation, including all poles, insulators, wiring, switchboards, mains connections, meters etc. | D151: prime cost (PC) sum | E151: prime | F151: cost | G151: R200,000.00
B152: C1.4.4.12 | C152: Handling costs and profit in respect of item C1.4.4.11 | D152: percentage (%) | E152: 200000 | G152: =E152*F152 -> 0
B153: C1.4.4.13 | C153: Provision of a 440/231 volt three phase electricity generator if electricity from a power supply authority is not available on site | D153: prime cost (PC) sum | E153: prime | F153: cost | G153: R1,000,000.00
B154: C1.4.4.14 | C154: Handling costs and profit in respect of item C1.4.4.13 | D154: percentage (%) | E154: 1000000 | G154: =E154*F154 -> 0
B155: C1.4.4.15 | C155: The provision of all gas installations required at the site offices, laboratories and at the Engineer’s staff accommodation (if required), including gas storage cylinders, tubing, regulators, gas burners and shut-off cocks | D155: prime cost (PC) sum | E155: prime | F155: cost | G155: R20,000.00
B156: C1.4.4.16 | C156: Handling costs and profit in respect of item C1.4.4.15 | D156: percentage (%) | E156: 20000 | G156: =E156*F156 -> 0
B157: C1.4.5 | C157: Services at site offices, laboratories and site accommodation
B158: C1.4.5.1 | C158: Fixed costs | D158: lump sum | E158: 1 | G158: =E158*F158 -> 0
B159: C1.4.5.2 | C159: Running costs | D159: month | E159: 21 | G159: =E159*F159 -> 0
B160: C1.4.6 | C160: Office staff
B161: C1.4.6.2 | C161: Technical assistant | D161: month | E161: 21 | G161: =E161*F161 -> 0
B162: C1.4.8.2 | C162: Provision of security guards / watchmen and an armed response service at the Engineer’s site offices and laboratories | D162: month | E162: 21 | G162: =E162*F162 -> 0
B163: C1.4 | C163: TOTAL CARRIED FORWARD TO SUMMARY | G163: =SUM(G84:G162) -> R1,415,000.00
A165: SCHEDULE A | B165: C1.5 | C165: ACCOMMODATION OF TRAFFIC
B166: C1.5.1 | C166: Accommodation of pedestrian and non-motorised traffic
B167: C1.5.1.1 | C167: Accommodation of pedestrian and non-motorised traffic | D167: month | E167: 21 | G167: =E167*F167 -> 0
B168: C1.5.1.2(a) | C168: Gravel surfaced pedestrian walkways / cycle paths | D168: square metre (m2) | E168: 200 | G168: =E168*F168 -> 0
B169: C1.5.2 | C169: Accommodation of vehicular traffic | D169: month | E169: 21 | G169: 0
B170: C1.5.3 | C170: Liaison with traffic authorities | D170: month | E170: 21 | G170: 0
B171: C1.5.5 | C171: Maintenance of temporary deviations
B172: C1.5.5.1 | C172: Grass cutting | D172: hectare (ha) | E172: 1 | G172: =E172*F172 -> 0
B173: C1.5.5.2 | C173: Drain cleaning | D173: kilometre (km) | E173: 1 | G173: 0
B174: C1.5.5.3 | C174: Cleaning out culverts | D174: cubic metre (m3) | E174: 400 | G174: 0
B175: C1.5.5.4 | C175: Collection of rubbish / litter | D175: kilometre (km) | E175: 1 | G175: 0
B176: C1.5.5.8 | C176: Replacement of damaged guardrails | D176: metre (m) | E176: 100 | G176: 0
B177: C1.5.5.9 | C177: Grading of temporary deviations and existing roads used as detours | D177: kilometre (km) | E177: 2 | G177: 0
B178: C1.5.5.10 | C178: Watering of temporary deviations and existing roads used as detours | D178: kilolitre (kℓ) | E178: 900 | G178: 0
B179: C1.5.5.11 | C179: Other road maintenance work ordered by the Engineer | D179: provisional sum | E179: Prov | F179: Sum | G179: R100,000.00
B180: C1.5.5.12 | C180: Handling cost, profit and all other charges in respect of item C1.5.6.11 | D180: percentage (%) | E180: =G179 -> R100,000.00 | G180: =E180*F180 -> 0
B181: C1.5.6 | C181: Removal of temporary deviations | D181: kilometre (km) | E181: 1 | G181: =E181*F181 -> 0
B182: C1.5.7 | C182: Temporary traffic control facilities
B183: C1.5.7.1 | C183: Delineators including mounting bases and ballast:
B184: C1.5.7.1(a) | C184: Single sided, reversible left or right (250mm x 1000mm) | D184: number (No.) | E184: 100 | G184: =E184*F184 -> 0
B185: C1.5.7.1(b) | C185: Double sided, reversible left or right (250mm x 1000mm) | D185: number (No.) | E185: 100 | G185: =E185*F185 -> 0
B186: C1.5.7.2 | C186: Traffic cones, minimum height 750mm | D186: number (No.) | E186: 100 | G186: 0
B187: C1.5.7.3 | C187: Flagmen | D187: man-shift | E187: 3456 | G187: 0
B188: C1.5.7.4 | C188: Traffic controllers | D188: man-shift | E188: 200 | G188: 0
B189: C1.5.7.5 | C189: Provision of illuminated traffic signs:
B190: C1.5.7.5(a) | C190: Sign mounted flashing amber lights (2 lights with the specified power supply) mounted on a backing board which is:
B191: C1.5.7.5(a)(i) | C191: 900mm wide x 150mm high | D191: number (No.) | E191: 4 | G191: =E191*F191 -> 0
B192: C1.5.7.5(b) | C192: Flashing LED illuminated arrow board | D192: number (No.) | E192: 2 | G192: 0
B193: C1.5.7.6(a) | C193: Sign mounted flashing amber lights (a pair of two lights mounted on a separate backing board) | D193: month | E193: 21 | G193: 0
B194: C1.5.7.6(b) | C194: Flashing LED illuminated arrow board | D194: month | E194: 21 | G194: 0
B195: C11.6.1 .8 (b) | C195: 900mm diameter (steel signboard material, background and symbol retro-reflective class I) | D195: number (No.) | E195: 16 | G195: 0
B196: C11.6.1.10 | C196: Warning signs, temporary
B197: C11.6.1.10 (d) | C197: 1500mm size (steel signboard material, background and symbol retro-reflective class I) | D197: number (No.) | E197: 15 | G197: =E197*F197 -> 0
B198: C11.6.1.12 | C198: Supplementary plates to temporary regulatory or warning signs (steel signboard material, background and symbol retro-reflective class I) | D198: square metre (m2) | E198: 3 | G198: =E198*F198 -> 0
B199: C1.5/C11.6.3 | C199: Road sign supports (overhead road sign structures excluded):
B200: C11.6.3.2 | C200: Timber (125mmØ creosoted poles) | D200: metre (m) | E200: 150 | G200: =E200*F200 -> 0
B201: C1.5/C11.6.5 | C201: Excavation and backfilling for road sign supports (not applicable to kilometre posts)
B202: C11.6.5.1 | C202: Excavating soft material and backfilling | D202: cubic metre (m3) | E202: 10 | G202: =E202*F202 -> 0
B203: C11.6.5.3 | C203: Extra over item C11.6.5.1 and C11.6.5.2 for cement-treated soil backfill | D203: cubic metre (m3) | E203: 6 | G203: =E203*F203 -> 0
B204: C1.5.7.7 | C204: Traffic calming devices:
B205: C1.5.7.7(a) | C205: 25mm high x 100mm wide asphalt rumble strips | D205: metre (m) | E205: 600 | G205: =E205*F205 -> 0
B206: C1.5.7.7(b) | C206: 50mm high x 500m wide asphalt rumble strips | D206: metre (m) | E206: 100 | G206: 0
B207: C1.5.7.9 | C207: Cleaning of traffic control facilities | D207: month | E207: 21 | G207: 0
B208: PC1.5.8 | C208: Traffic safety officer | D208: month | E208: 21 | G208: 0
... 693 more rows

Sheet Summary
A1: SUMMARY
A3: CONTRACT SANRAL P.004-062-2022/1
A4: FOR FLOOD REPAIRS TO THE MHLALI RIVER BRIDGE ON P103
A6: GENERAL
A7: C1.2 | B7: GENERAL REQUIREMENTS AND PROVISIONS | C7: ='Conv. Construction BoQ'!G59 -> R8,700,000.00
A8: C1.3 | B8: CONTRACTOR’S SITE ESTABLISHMENT AND GENERAL OBLIGATIONS | C8: ='Conv. Construction BoQ'!G80 -> R2,500,000.00
A9: C1.4 | B9: FACILITIES FOR THE ENGINEER | C9: ='Conv. Construction BoQ'!G163 -> R1,415,000.00
A10: C1.5 | B10: ACCOMMODATION OF TRAFFIC | C10: ='Conv. Construction BoQ'!G215 -> R300,000.00
A11: C1.6 | B11: CLEARING AND GRUBBING | C11: ='Conv. Construction BoQ'!G227 -> R0.00
A12: C1.7 | B12: LOADING AND HAULING | C12: ='Conv. Construction BoQ'!G236 -> R0.00 | D12: =SUM(C7:C12) -> R12,915,000.00
A14: SERVICES
A15: C2.1 | B15: GENERAL REQUIREMENTS AND TRENCHING FOR SERVICES | C15: ='Conv. Construction BoQ'!G243 -> R1,750,000.00
D16: =SUM(C15:C16) -> R1,750,000.00
A18: DRAINAGE
A19: C3.1 | B19: DRAINS | C19: ='Conv. Construction BoQ'!G291 -> R10,000.00
A20: C3.2 | B20: CULVERTS | C20: ='Conv. Construction BoQ'!G331 -> R0.00
A21: C3.3 | B21: CONCRETE KERBING AND CHANNELING, ASPHALT BERMS, CHUTES, DOWNPIPES, AS WELL AS CONCRETE, STONE PITCHED AND GABION LININGS FOR OPEN DRAINS | C21: ='Conv. Construction BoQ'!G357 -> R0.00 | D21: =SUM(C19:C21) -> R10,000.00
A23: EARTHWORKS AND PAVEMENT LAYERS MATERIALS
A24: C4.2 | B24: CUT MATERIALS | C24: ='Conv. Construction BoQ'!G374 -> R0.00
A25: C4.3 | B25: EXISTING ROAD MATERIALS | C25: ='Conv. Construction BoQ'!G407 -> R0.00
A26: C4.4 | B26: COMMERCIAL MATERIALS | C26: ='Conv. Construction BoQ'!G427 -> R25,000.00
D27: =SUM(C24:C27) -> R25,000.00
A29: EARTHWORKS AND PAVEMENT LAYERS CONSTRUCTION
A30: C5.1 | B30: ROADBED | C30: ='Conv. Construction BoQ'!G432 -> R0.00
A31: C5.2 | B31: FILL | C31: ='Conv. Construction BoQ'!G441 -> R0.00
A32: C5.3 | B32: ROAD PAVEMENT LAYERS | C32: ='Conv. Construction BoQ'!G453 -> R0.00
A33: C5.4 | B33: STABILISATION | C33: ='Conv. Construction BoQ'!G462 -> R0.00
D34: =SUM(C30:C34) -> R0.00
A36: PRETREATMENT AND REPAIR EXISTING LAYERS
A37: C8.1 | B37: PRIME COAT | C37: ='Conv. Construction BoQ'!G468 -> R0.00
D38: =SUM(C37:C38) -> R0.00
A40: ASPHALT LAYERS
A41: C9.1 | B41: ASPHALT LAYERS | C41: ='Conv. Construction BoQ'!G490 -> R0.00 | D41: =SUM(C41) -> R0.00
A43: ANCILLIARY ROAD WORKS
A44: C11.1 | B44: PITCHING, STONEWORK, CAST IN SITU CONCRETE FOR PROTECTION AGAINST EROSION | C44: ='Conv. Construction BoQ'!G496 -> R0.00
A45: C11.2 | B45: NON-STRUCTURAL GABIONS | C45: ='Conv. Construction BoQ'!G519 -> R0.00
A46: C11.4 | B46: ROAD RESTRAINT SYSTEMS | C46: ='Conv. Construction BoQ'!G549 -> R0.00
A47: C11.6 | B47: ROAD SIGNS | C47: ='Conv. Construction BoQ'!G574 -> R0.00
A48: C11.7 | B48: ROAD MARKINGS AND ROAD STUDS | C48: ='Conv. Construction BoQ'!G589 -> R0.00
A49: C11.8 | B49: LANDSCAPING AND PLANTING PLANTS | C49: ='Conv. Construction BoQ'!G604 -> R0.00
A50: C11.9 | B50: FINISHING THE ROAD AND ROAD RESERVE AND TREATING OLD ROADS | C50: ='Conv. Construction BoQ'!G609 -> R0.00 | D50: =SUM(C44:C50) -> R0.00
A52: GEOTECHNICAL
A53: C12.1 | B53: PILING | C53: ='Conv. Construction BoQ'!G647 -> R0.00
D54: =SUM(C53:C54) -> R0.00
A56: STRUCTURES
A57: C13.1 | B57: FOUNDATIONS | C57: ='Conv. Construction BoQ'!G692 -> R100,000.00
A58: C13.2 | B58: FALSEWORK, FORMWORK AND CONCRETE FINISH | C58: ='Conv. Construction BoQ'!G734 -> R0.00
A59: C13.3 | B59: STEEL REINFORCEMENT | C59: ='Conv. Construction BoQ'!G759 -> R0.00
A60: C13.4 | B60: CONCRETE | C60: ='Conv. Construction BoQ'!G802 -> R0.00
A61: C13.6 | B61: BEARINGS | C61: ='Conv. Construction BoQ'!G821 -> R0.00
A62: C13.7 | B62: JOINTS | C62: ='Conv. Construction BoQ'!G844 -> R0.00
A63: C13.8 | B63: ANCILLARY STRUCTURAL ELEMENTS | C63: ='Conv. Construction BoQ'!G869 -> R0.00
D64: =SUM(C57:C64) -> R100,000.00
A66: QUALITY ASSURANCE
A67: C20.1 | B67: TESTING MATERIALS AND JUDGEMENT OF WORKMANSHIP | C67: ='Conv. Construction BoQ'!G887 -> R7,050,000.00 | D67: =SUM(C67) -> R7,050,000.00
A69: SECTION D: STAKEHOLDER AND COMMUNITY LIAISON, AND TARGET LABOUR AND TARGETED ENTERPRISES UTILISATION AND DEVELOPMENT
A70: D1010 | B70: TRAINING, COACHING, GUIDANCE, MENTORING AND ASSISTANCE | C70: ='Conv. Construction BoQ'!G941 -> R9,010,000.00 | D70: =SUM(C70) -> R9,010,000.00
B73: SUBTOTAL | C73: =SUM(D12+D16+D21+D27+D34+D38+D41+D50+D54+D64+D67+D70) -> R30,860,000.00

Sheet Form C2.3 Summary of Pricing Sc
A1: C2.3 SUMMARY OF PRICING SCHEDULE
A3: CONTRACT SANRAL P.004-062-2022/1
A4: FOR FLOOD REPAIRS TO THE MHLALI RIVER BRIDGE ON P103
A7: SCHEDULE A: | B7: ROADWORKS | C7: =Summary!D12+Summary!D16+Summary!D21+Summary!D27+Summary!D34+Summary!D38+Summary!D41+Summary!D50+Summary!D67 -> R21,750,000.00
A9: SCHEDULE B: | B9: BRIDGES | C9: =Summary!D54+Summary!D64 -> R100,000.00
A11: SCHEDULE D: | B11: STAKEHOLDER AND COMMUNITY LIAISON, AND TARGET LABOUR AND TARGETED ENTERPRISES UTILISATION AND DEVELOPMENT | C11: ='Conv. Construction BoQ'!G941 -> R9,010,000.00
A14: SUBTOTAL A | C14: =C7+C9+C11 -> R30,860,000.00
A18: VALUE ADDED TAX:
A19: 15% of Subtotal B | C19: =C14*0.15 -> R4,629,000.00
A21: TOTAL CARRIED TO C.1.1.1 : FORM OF OFFER | C21: =C14+C19 -> R35,489,000.00
A27: SIGNED BY TENDERER: …...................................................................................................................
